Cogmind - Beta 13 @@@ ROGUE MODE // 2024.06.07 @ 15:28:55 Player: H3-RMN Result: Destroyed by KB-XJU(R) with Subdweller Machine Gun Performance ------------- Evolutions (0) 0 Regions Visited (2) 400 Robots Destroyed (22) 110 Value Destroyed (688) 688 Prototype IDs (0) 0 Alien Tech Used (0) 0 Bonus (0) 0 TOTAL SCORE: 1198 Bonus ------- None Cogmind --------- Core Integrity 0/250 Matter 260/300 Energy 69/100 System Corruption 0% Temperature Cool (6) Movement Walking (120) Location -10/Subcaves Parts ------- > --- POWER (1) -------- Subdweller Power Source > --- PROPULSION (2) --- Aluminum Leg Myomer Leg > --- UTILITY (2) ------ Medium Storage Unit Makeshift Light Armor Plating > --- WEAPON (2) ------- Beamcaster Heavy Battle Rifle > --- INVENTORY (10) --- Subdweller Monowheel Huge Storage Unit Hacking Suite Subdweller Laser Subdweller Machine Gun Subdweller Machine Gun Heavy Battle Rifle Makeshift Shrapnel Gun Flamer Peak State ------------ > --- POWER ------------ Neutrino Core > --- PROPULSION ------- Aluminum Leg Myomer Leg > --- UTILITY ---------- Medium Storage Unit Makeshift Light Armor Plating > --- WEAPON ----------- Beamcaster Heavy Battle Rifle > --- INVENTORY -------- Subdweller Monowheel Subdweller Monowheel Huge Storage Unit Hacking Suite Subdweller Laser Subdweller Machine Gun Subdweller Machine Gun Heavy Battle Rifle Makeshift Shrapnel Gun [Rating: 30] Favorites ----------- Power Light Ion Engine Engine Light Ion Engine Power Core Neutrino Core Propulsion Aluminum Leg Treads Light Treads Leg Aluminum Leg Wheel Subdweller Monowheel Utility Medium Storage Unit Device Seismic Detector Storage Medium Storage Unit Protection Light Armor Plating Weapon Assault Rifle Energy Gun Beamcaster Ballistic Gun Assault Rifle Build | -11 -10 -10 ------- Run | Yrd Mat Sub Slots Evolved . | . . . Power . | . . . Propulsion . | . . . Utility . | . . . Weapon . | . . . Parts Attached 32 | 8 4 20 Power 7 | 1 1 5 Engine 6 | 1 1 4 Core 1 | . . 1 Reactor . | . . . Propulsion 11 | 2 1 8 Treads 1 | . . 1 Leg 9 | 2 1 6 Wheel 1 | . . 1 Hover . | . . . Flight . | . . . Utility 6 | 2 2 2 Device 1 | 1 . . Storage 2 | 1 1 . Processor . | . . . Hackware . | . . . Protection 3 | . 1 2 Artifact . | . . . Weapon 8 | 3 . 5 Energy Gun 4 | 1 . 3 Energy Cannon . | . . . Ballistic Gun 4 | 2 . 2 Ballistic Cannon . | . . . Launcher . | . . . Special Weapon . | . . . Impact Weapon . | . . . Slashing Weapon . | . . . Piercing Weapon . | . . . Special Melee Weapon . | . . . Unidentified Prototypes . | . . . Parts Lost 11 | . 1 10 Power 4 | . 1 3 Propulsion 3 | . . 3 Utility 1 | . . 1 Weapon 3 | . . 3 Highest Loss Streak 5 | . 1 5 To Critical Strikes . | . . . Average Slot Usage (%) 99 | . 100 99 Engine 13 | . 14 12 Leg 27 | . 28 27 Device 1 | . 4 . Storage 14 | . 14 14 Protection 12 | . 9 13 Energy Gun 8 | . . 13 Ballistic Gun 19 | . 28 14 Naked Turns . | . . . Heaviest Build 37 | 12 19 37 Greatest Support 35 | 20 20 35 Greatest Overweight (x) 1 | . . 1 Average Overweight (x) . | . . . Largest Inventory Capacity 10 | 8 10 10 Average Capacity 9 | 7 9 10 Most Carried 10 | 2 10 10 Average Carried 8 | 1 8 9 Final Capacity 10 | 8 10 10 Final Carried 10 | 2 10 9 Class Distribution -------------------- 54% | Mutant 45% | Scavenger-Mutant Dominant Class ---------------- Mutant | -10/Materials Scavenger-Mutant | -10/Subcaves Resources | -11 -10 -10 ----------- Run | Yrd Mat Sub Matter Collected 754 | 322 105 327 Remotely . | . . . Salvage Created 933 | 148 150 635 Parts 57 | 11 6 40 Haulers Intercepted . | . . . Recyclers Shooed . | . . . Parts Field Recycled . | . . . Retrieved Matter . | . . . Parts Self-Destructed 6 | . . 6 Prevented . | . . . Kills | -11 -10 -10 ------- Run | Yrd Mat Sub Combat Hostiles Destroyed 17 | . 3 14 Guns 17 | . 3 14 Classes Destroyed 9 | 2 2 5 Tunneler 3 | 3 . . Recycler 1 | 1 . . Operator 1 | . 1 . Swarmer 1 | . . 1 Grunt 6 | . 3 3 Sentry 1 | . . 1 Artisan 1 | . . 1 Cobbler 1 | . . 1 Subdweller 9 | . . 9 Best Kill Streak 4 | 4 3 4 Combat Bots Only 4 | . 3 4 Max Kills in Single Turn 1 | 1 1 1 Gunslinging . | . . . Exploded . | . . . Melee . | . . . Uniques/NPCs Destroyed . | . . . Combat | -11 -10 -10 -------- Run | Yrd Mat Sub Hostile Shots Fired 141 | . 33 108 Missed 42 | . 9 33 Damage Taken 1877 | . 322 1555 Core 267 | . 53 214 Absorbed by Shields . | . . . Core Remaining (%) 100 | 100 . . Volleys Fired 112 | 13 20 79 Largest 2 | 2 2 2 Hottest 115 | 60 40 115 Shots Fired 206 | 24 40 142 Gun 206 | 24 40 142 Cannon . | . . . Launcher . | . . . Special . | . . . Kinetic 126 | 20 40 66 Thermal 59 | . . 59 Explosive . | . . . Electromagnetic 21 | 4 . 17 Robot Hit Streak 20 | 5 12 20 Robot Miss Streak 3 | 3 2 3 Penetration Max . | . . . Secondary Targets 1 | . . 1 Max Gunslinging Chain 1 | . . 1 Shots Hit Robots 152 | 12 30 110 Core Hits 48 | 5 9 34 Critical Kills . | . . . Critical Parts Destroyed . | . . . Critical Strikes 7 | . . 7 Burn 5 | . . 5 Destroy 1 | . . 1 Corrupt 1 | . . 1 Melee Attacks . | . . . Impact . | . . . Slashing . | . . . Piercing . | . . . Sneak Attacks . | . . . Combat Hostiles . | . . . Follow-up Attacks . | . . . Damage Inflicted 2459 | 145 324 1990 Guns 2417 | 145 324 1948 Cannons . | . . . Explosions 42 | . . 42 Melee . | . . . Ramming . | . . . Kinetic 1405 | 105 324 976 Thermal 857 | . . 857 Explosive . | . . . Electromagnetic 197 | 40 . 157 Impact . | . . . Slashing . | . . . Piercing . | . . . Highest Corruption . | . . . Average Corruption . | . . . Corruption Purged . | . . . Corruption Blocked . | . . . Overload Shots . | . . . Overflow Damage . | . . . Projectiles . | . . . Explosions . | . . . Melee . | . . . Knockbacks . | . . . Impact . | . . . Kinetic . | . . . Secondary . | . . . Self-Inflicted Damage 30 | . . 30 Shots 1 | . . 1 Rammed . | . . . Targets Rammed . | . . . Kicked . | . . . Crushed . | . . . Highest Temperature 28 | . 27 28 Average Temperature 10 | . 12 9 Received Heat Transfer 378 | . 219 159 Siege Activations . | . . . Robots Corrupted . | . . . Combat Hostiles . | . . . Parts Fried 1 | . . 1 Impact Corruptions . | . . . Robots Melted . | . . . Combat Hostiles . | . . . Parts Melted 4 | . . 4 Heat Transferred 1863 | . . 1863 Parts Sabotaged . | . . . Parts Stolen . | . . . Parts Stripped . | . . . Power Chain Reactions 1 | . . 1 Alert | -11 -10 -10 ------- Run | Yrd Mat Sub Peak Influence 126 | 20 126 . Initial 13 | . 13 . Average 33 | 7 37 . Maximum Alert Level . | . . . Low Security (%) 100 | 100 100 . Level 1 . | . . . Level 2 . | . . . Level 3 . | . . . Level 4 . | . . . Level 5 . | . . . High Security . | . . . Max Security . | . . . Squads Dispatched 1 | . 1 . Investigation . | . . . Extermination . | . . . Reinforcement 1 | . 1 . Assault . | . . . Garrison . | . . . Intercept . | . . . Searches Triggered . | . . . Construction Impeded . | . . . Haulers Reinforced . | . . . Active Scanning Responses . | . . . Cargo Convoy Interrupts . | . . . Stealth | -11 -10 -10 --------- Run | Yrd Mat Sub Distress Signals . | . . . Communications Jammed . | . . . Distress Signals . | . . . Times Spotted 29 | . 4 25 Peak Tracking Total 6 | . 3 6 Tactical Retreats 2 | . . 2 Traps | -11 -10 -10 ------- Run | Yrd Mat Sub Traps Triggered . | . . . Indirectly . | . . . Trap Hack Attempts . | . . . Triggered . | . . . Disarmed . | . . . Reprogrammed . | . . . Reused 1 | . . 1 Traps Extracted . | . . . Installed 1 | . . 1 Triggered . | . . . Machines | -11 -10 -10 ---------- Run | Yrd Mat Sub Machines Disabled . | . . . Max in Single Turn . | . . . Machines Repaired . | . . . Machines Dismantled . | . . . Machines Sabotaged . | . . . Overloaded Fab Kills . | . . . Hacking | -11 -10 -10 --------- Run | Yrd Mat Sub Machines Accessed 4 | . 3 1 Terminals 2 | . 2 . Fabricators . | . . . Repair Stations . | . . . Recycling Units 1 | . 1 . Scanalyzers . | . . . Garrison Access . | . . . Total Hacks 9 | . 7 2 Successful 5 | . 3 2 Failed 4 | . 4 . Catastrophic 3 | . 3 . Database Lockouts . | . . . Manual 6 | . 6 . Terminals 6 | . 6 . Fabricators . | . . . Repair Stations . | . . . Recycling Units 1 | . 1 . Scanalyzers . | . . . Garrison Access . | . . . Terminal Hacks 4 | . 2 2 Record 3 | . 1 2 Robot Analysis 1 | . 1 . Fabricator Hacks . | . . . Repair Station Hacks . | . . . Recycling Unit Hacks 1 | . 1 . Report Inventory 1 | . 1 . Scanalyzer . | . . . Garrison Access Hacks . | . . . Unauthorized Hacks . | . . . Terminals . | . . . Fabricators . | . . . Repair Stations . | . . . Recycling Units . | . . . Scanalyzers . | . . . Garrison Access . | . . . Data Cores Recovered . | . . . Used . | . . . Hacking Detections 2 | . 2 . Full Trace Events 1 | . 1 . Feedback Events . | . . . Feedback Blocked . | . . . Robot Schematics Acquired . | . . . Robots Built . | . . . Authchips . | . . . Time . | . . . Total Robot Build Rating . | . . . Part Schematics Acquired . | . . . Parts Built . | . . . Authchips . | . . . Time . | . . . Total Part Build Rating . | . . . Parts Repaired . | . . . Time . | . . . Parts Recycled . | . . . Recycled Matter . | . . . Retrieved Matter . | . . . Retrieved Components . | . . . Parts Scanalyzed . | . . . Part Schematics Acquired . | . . . Parts Damaged . | . . . Bothacking | -11 -10 -10 ------------ Run | Yrd Mat Sub Used RIF Installer . | . . . Robots Hacked . | . . . Non-combat . | . . . Combat . | . . . Robot Hacks Applied . | . . . Relay Couplers Released . | . . . Fabnet Peak Effective % . | . . . Robots Rewired . | . . . Allies Hacked . | . . . Hacks Repelled . | . . . Allies | -11 -10 -10 -------- Run | Yrd Mat Sub Total Allies . | . . . Largest Group . | . . . Highest-Rated Group . | . . . Highest-Rated Ally . | . . . Total Orders . | . . . Ally Attacks . | . . . Total Damage . | . . . Kills . | . . . Allies Corrupted . | . . . Allies Melted . | . . . Intel | -11 -10 -10 ------- Run | Yrd Mat Sub Robot Analysis Total 1 | . 1 . Derelict Logs Recovered 1 | . . 1 Drone Launches . | . . . Drone Recoveries . | . . . Exploration | -11 -10 -10 ------------- Run | Yrd Mat Sub Turns Passed 2521 | 118 943 1460 Spaces Moved 1176 | 58 207 911 Core 3 | 3 . . Treads . | . . . Legs 1118 | 55 207 856 Wheels 55 | . . 55 Hover . | . . . Flight . | . . . Fastest Speed 50 | 50 120 120 Average Speed 121 | 116 120 121 Slowest Speed 190 | 120 120 190 Overloaded Moves . | . . . Propulsion Burnouts . | . . . Robots Hopped . | . . . Cave-ins Triggered . | . . . Exploration Rate (%) 32 | 3 30 64 Regions Visited 2 Branch Regions 1 Pre-discovered Areas . | . . . Known Exits Taken . | . . . Unknown Exits Taken 2 | 1 1 . Scrap Searched 1 | . . 1 Spaces Dug . | . . . Terrain Destroyed . | . . . Melee . | . . . Projectile . | . . . AOE . | . . . Terrain Rammed . | . . . Walls Destroyed . | . . . Machines Disabled . | . . . Actions | -11 -10 -10 --------- Run | Yrd Mat Sub Total 2074 | 82 865 1127 Wait 715 | 2 625 88 Move 1174 | 57 206 911 Hop . | . . . Pick Up 23 | 2 8 13 Fast Attach 14 | 7 1 6 Attach 10 | . 1 9 Detach . | . . . Swap 8 | 1 2 5 Drop 17 | . 2 15 Fire 112 | 13 20 79 Melee . | . . . Ram . | . . . Kick . | . . . Crush . | . . . Escape Stasis . | . . . Rewire . | . . . Trap 1 | . . 1 Miscellaneous . | . . . Route ------- -11/Scrapyard -10/Materials (discovered 2 exits: [*Mat] / *Sub) -10/Subcaves History --------- Turn | Location | Event 4 | -11/Scrapyard | Discovered new exit (range 16) 119 | -11/Scrapyard | Entered Materials 337 | -10/Materials | Build established: Mutant 425 | -10/Materials | Discovered new exit (range 10) 1042 | -10/Materials | Discovered new exit (range 5) 1062 | -10/Materials | Entered Subcaves 1085 | -10/Subcaves | Learned Materials machine intel 1190 | -10/Subcaves | Shifting Twisted Machinery released Mak. Shrapnel Gun 1197 | -10/Subcaves | Ambushed by swarm of Subdwellers 1199 | -10/Subcaves | Ambushed by Subdwellers from Twisted Machinery 1201 | -10/Subcaves | Ambushed by Subdwellers from Twisted Machinery 1234 | -10/Subcaves | Lost 3 allies 1318 | -10/Subcaves | Ambushed by angry Subdweller bent on revenge 1350 | -10/Subcaves | Core integrity fell below 50% 1636 | -10/Subcaves | Build established: Scavenger-Mutant 1968 | -10/Subcaves | Ambushed by Subdwellers from Twisted Machinery 2009 | -10/Subcaves | Core integrity fell below 20% 2038 | -10/Subcaves | A swath of the cavern ceiling suddenly collapsed 2059 | -10/Subcaves | Lost 5 parts (2p2n1w) 2198 | -10/Subcaves | Visited Clippyterm 2201 | -10/Subcaves | Learned Factory emergency access door positions 2522 | -10/Subcaves | Destroyed by KB-XJU(R) with Subdweller Machine Gun Last Messages --------------- 02308_ Neutrino Core destroyed. 02310_ Aluminum Leg destroyed. 02310_ 5P-A9B(R) destroyed. 02316_ XU-L0S(R) affixes Scrap Shield Fragment to Scrap Shield. 02319_ Sub. Laser melted. 02319_ Disposable Heat Sink melted. 02319_ XU-L0S(R) destroyed. 02322_ Acquired 32 matter. 02326_ Acquired 37 matter. 02328_ Acquired Flamer. 02333_ Acquired Broken Sub. Power Source. 02411_ G-34 Mercenary suffers critical hit (Burn). 02411_ Ion Engine melted. 02411_ G-34 Mercenary destroyed. 02415_ Acquired 40 matter. 02417_ Dropped Sub. Monowheel. 02418_ Acquired Aluminum Leg. 02419_ Heat Sink fries itself beyond repair. Map ----- +----------------------------------------------------+ | ?????????????????????????????????????????????????? | | ?????????????????????????????????????????????????? | | ?????????????????????????????????????????????????? | | ?????????????????????????????????????????????????? | | ?????????????????????????????????????????????????? | | ?????????????????????????????????????????????????? | | ?????????????????????????????????????????????????? | | ?????????????????????????????????????????????????? | | ?????????????????????????????????????????????????? | | ?????????????????????????????????????????????????? | | ?????????????????????????????????????????????????? | | ?????????????????????????????????????????????????? | | ?????????????????????????????????????????????????? | | ?????????????????????????????????????????????????? | | ?????????????????????????????????????????????????? | | ???????????????????????????????????????? ????????? | | ???????????????????????????????????????? ??????? | | ???????????????????????????????????????? ?????? | | ????????????????????????????????????"""" ?????? | | ????????????????????????????????????"""" ??????? | | ????????????? ??????????????????????" #?????? | | ????????????? ??????????####??????#""""""##?""?? | | ?????????????# ????????## ##????##""""""" ??? | | ?????????????# ????????# ###### "" ????? | | ??????????#### ???????## R # # # #?????? | | ??????????# #??????#@ R " ""##?????? | | ??????????# ##????#### """ " #?????? | | ???????????# ##?????## ""#######" #?????? | | ???????????# ###??## "#????#"" #?????? | | ???????????# #### #????## ##?##??? | | ???????????? ## ####?# #### ##?? | | ?????????????????# ## # #### ### | | ????????????????## # | | ????????????????# ### # # | | ????????????????# # ## ## ## ### # | | ??????????????### ## ###### #? | | ??????????????# #### ###??## # ### #?? # | | ?????????????## #??## ##??#####??# #?? | | ???????????### ##??## = #?????????? ##???? | | ???????????# #???## ##?????????##????? | | ???????????# ## #???# ###?????????????? | | ???????????# ## ####???## #?????????????? | | ???????????## ####???????# ###?????????????? | | ????????????# #????????### ##???????????????? | | ????????????# ##???????## ##???????????????? | | ????????????#####???????## #???????????????? | | ???????????????????????## #???????????????? | | ????????????????????#### #???????????????? | | ???????????????????## ##???????????????? | | ???????????????????# #????????????????? | +----------------------------------------------------+ Best States ------------- Heat Dissipation 25 Energy Generation 19 Energy Capacity 315 Matter Stores 300 Matter Capacity 300 Sight Range 16 Terrain Scan Density 10 Armor Coverage 150 Evasion (%) 55 Item Schematics ----------------- None Robot Schematics ------------------ None Fabricated ------------ Nothing Alien Tech Used ----------------- None Achievements -------------- None Challenges ------------ None Game ------ Seed ReinforcedAbsorptionBattery Manual? 0 Play Time 00:18:57 Cumulative 417.1 hours Start 2024.06.05 @ 15:52:21 End 2024.06.07 @ 15:28:55 Sessions 1 Manual Loads 0 Difficulty Rogue Special Mode None Game No. 161 Rogue 158 Adventurer 3 Explorer 0 Win Type - Total 7 Types 4/1/0/1/0/1/0/0/0 Lore% 78 Gallery% 82 Achievement% 86 Wizard Run 0 Options --------- Layout 2 ASCII 0 Keyboard 0 Movement Numpad Keybinds 0 Fullscreen 2 Font 24/Smallcaps Map View 50x44 Zoom Use 0% Tactical HUD 1 Map Filters NONE Filters NONE Steam 1 RUN: e32e4977-53c3-42cb-96c9-e1851ff1b4e2